Cogmind - Beta 15 @@@ ROGUE MODE // 2025.06.24 @ 11:52:07 Player: KN-OKO Result: Destroyed by Immortal with Experimental Jetlance Performance ------------- Evolutions (7) 3500 Regions Visited (9) 1800 Robots Destroyed (119) 595 Value Destroyed (6567) 6567 Prototype IDs (18) 360 Alien Tech Used (1) 200 Bonus (3294) 3294 TOTAL SCORE: 16316 Bonus ------- Entered DSFs 500 Registered with UFD 300 Met Optimus in HQ 500 Met Sigix 2000 Friendly Fire -6 Cogmind --------- Core Integrity 0/1300 Matter 274/300 Energy 350/350 System Corruption 20% Temperature Cool (0) Movement Walking (260) Ox2 Location -3/Protoforge Parts ------- > --- POWER (2) -------- Reinforced Quantum Reactor > --- PROPULSION (6) --- Myomer Leg > --- UTILITY (10) ----- High-capacity Storage Unit Advanced Signal Interpreter Improved Targeting Computer > --- WEAPON (3) ------- (None) > --- INVENTORY (20) --- Particle Reactor Centrium Wheel Centrium Wheel Energy Well (350) Phase Redirector Core Reset Matrix Subatomic Replicator Precision Phase Gun Linear Accelerator Fusion Bomb Launcher Sigix Terminator Sigix Containment Pod Peak State ------------ > --- POWER ------------ Particle Reactor Reinforced Quantum Reactor > --- PROPULSION ------- Biometal Leg Biometal Leg Heavy Shield Leg High-density Centrium Leg High-density Centrium Leg > --- UTILITY ---------- Experimental Heat Sink Experimental Heat Sink High-capacity Storage Unit Advanced Sensor Array Advanced Signal Interpreter Improved Targeting Computer Improved Transmission Jammer Advanced Reaction Control System Centrium Medium Armor Plating Graphene Brace > --- WEAPON ----------- Precision Phase Gun Precision Phase Gun Railgun > --- INVENTORY -------- Particle Reactor Biometal Medium Treads Enhanced Flexi-carbon Leg Myomer Leg Heavy Shield Leg Centrium Wheel Centrium Wheel Energy Well Phase Redirector Core Reset Matrix Subatomic Replicator Railgun Linear Accelerator Heavy Proton Missile Launcher Fusion Bomb Launcher Sigix Terminator Sigix Containment Pod [Rating: 171] Favorites ----------- Power Reinforced Quantum Reactor Engine Ion Engine Power Core Reinforced Fission Core Reactor Reinforced Quantum Reactor Propulsion Light Treads Treads Light Treads Leg Carbon-fiber Leg Wheel Wheel Utility Advanced Heat Sink Device Advanced Heat Sink Storage High-capacity Storage Unit Processor Improved Targeting Computer Hackware System Shield Protection Centrium Medium Armor Plating Artifact Phase Redirector Weapon Quantum Rifle Energy Gun Quantum Rifle Energy Cannon Advanced Plasma Cannon Ballistic Gun Light Assault Rifle Ballistic Cannon Hypervelocity Mass Driver Launcher Heavy Proton Missile Launcher Impact Weapon Power Maul Slashing Weapon Makeshift Sword Build | -11 -10 -10 -7 -5 -4 -4 -3 -3 -3 ------- Run | Yrd Mat Sub Scr Fac Fac DSF Res Qua Frg Slots Evolved 14 | . . . . 10 2 . 2 . . Power 1 | . . . . 1 . . . . . Propulsion 4 | . . . . 3 1 . . . . Utility 8 | . . . . 6 1 . 1 . . Weapon 1 | . . . . . . . 1 . . Parts Attached 162 | 6 5 4 6 59 1 17 19 24 21 Power 20 | 1 1 1 . 10 . 1 3 3 . Engine 6 | 1 1 1 . 3 . . . . . Core 7 | . . . . 6 . 1 . . . Reactor 7 | . . . . 1 . . 3 3 . Propulsion 57 | 2 . . 1 30 1 1 6 11 5 Treads 13 | 2 . . 1 2 1 1 . 6 . Leg 37 | . . . . 21 . . 6 5 5 Wheel 7 | . . . . 7 . . . . . Hover . | . . . . . . . . . . Flight . | . . . . . . . . . . Utility 53 | 1 2 2 3 14 . 9 7 6 9 Device 31 | . 1 1 1 10 . 5 4 4 5 Storage 5 | 1 1 . 1 . . 2 . . . Processor 6 | . . . . 1 . 1 3 . 1 Hackware 1 | . . . . 1 . . . . . Protection 9 | . . 1 1 2 . 1 . 1 3 Artifact 1 | . . . . . . . . 1 . Weapon 32 | 2 2 1 2 5 . 6 3 4 7 Energy Gun 9 | 1 . 1 . . . . 2 1 4 Energy Cannon 6 | . . . . 1 . 4 . 1 . Ballistic Gun 5 | 1 1 . . 1 . . . . 2 Ballistic Cannon 3 | . . . . . . 1 1 1 . Launcher 4 | . 1 . . . . 1 . 1 1 Special Weapon . | . . . . . . . . . . Impact Weapon 1 | . . . . 1 . . . . . Slashing Weapon 4 | . . . 2 2 . . . . . Piercing Weapon . | . . . . . . . . . . Special Melee Weapon . | . . . . . . . . . . Unidentified Prototypes 12 | . . . . 1 . . 1 5 5 Parts Lost 86 | . 1 1 . 38 . 6 9 4 27 Power 8 | . . . . 7 . . . . 1 Propulsion 33 | . . . . 17 . 4 3 . 9 Utility 28 | . . . . 10 . 1 4 1 12 Weapon 17 | . 1 1 . 4 . 1 2 3 5 Highest Loss Streak 23 | . 1 1 . 15 . 2 7 1 23 To Critical Strikes . | . . . . . . . . . . Average Backups 11 | 4 7 6 7 11 8 11 14 15 15 Power . | . 1 . . . . . 1 1 1 Propulsion 4 | 2 4 3 3 3 2 1 3 4 5 Utility 1 | . . . . 1 . . 1 1 2 Weapon 4 | . 2 2 2 4 5 8 7 6 4 Tool/Special . | . . . . . . . . . . Unused Backups 25 | . 2 2 4 3 . 2 1 3 8 Power 2 | . . . . . . . 1 . 1 Propulsion 7 | . 1 2 2 . . . . . 2 Utility 4 | . . . 1 2 . . . . 1 Weapon 9 | . 1 . 1 1 . 2 . 2 2 Tool/Special 3 | . . . . . . . . 1 2 Average Slot Usage (%) 86 | . 88 89 80 84 73 81 90 91 91 Engine 5 | . 14 14 14 1 5 5 2 . . Core 1 | . . . . 4 5 5 3 . . Reactor 3 | . . . . 3 . . 2 9 8 Treads 13 | . 28 28 28 . 15 16 2 15 . Leg 11 | . . . . 21 . 3 23 7 25 Wheel 1 | . . . . 3 15 7 . . . Device 16 | . 3 4 . 21 10 15 22 27 23 Storage 5 | . 14 4 7 5 5 5 4 4 4 Processor 6 | . . . . 4 5 7 12 11 9 Protection 4 | . . 9 9 2 . 3 . 2 3 Energy Gun 4 | . 13 13 7 . . . 2 4 5 Energy Cannon 2 | . . . . . 5 5 4 4 2 Ballistic Gun 3 | . 13 14 7 . 5 1 . . 2 Slashing Weapon 2 | . . . 5 6 . . . . . Peak Build Rating 171 | 6 8 9 20 75 59 97 119 158 171 Average Rating 77 | 5 6 8 10 60 59 81 105 142 153 On Entrance 51 | . 6 8 9 20 54 59 95 119 145 Naked Turns . | . . . . . . . . . . Heaviest Build 150 | 12 19 26 33 68 64 150 116 136 134 Greatest Support 192 | 40 40 40 40 101 30 81 101 192 180 Greatest Overweight (x) 14 | . . . . 4 2 14 2 1 1 Average Overweight (x) . | . . . . . 2 3 1 . . Largest Inventory Capacity 25 | 8 10 10 15 15 15 25 20 20 20 Average Capacity 15 | 7 8 6 10 15 15 19 20 20 20 Most Carried 20 | 6 10 10 15 15 10 16 20 20 20 Average Carried 13 | 4 7 6 7 13 10 14 17 19 19 Final Capacity 20 | 8 10 5 15 15 15 20 20 20 20 Final Carried 20 | 6 10 5 15 11 10 14 20 20 14 Class Distribution -------------------- 32% | Mutant 25% | Scavenger-Tank 13% | Scavenger-Gladiator 13% | Scavenger-Mutant 10% | Scavenger-Gunner Dominant Class ---------------- Mutant | -10/Materials Mutant | -10/Subcaves Mutant | -7/Scraptown Scavenger-Gladiator | -5/Factory Scavenger-Mutant | -4/Factory Scavenger-Mutant | -4/DSF Scavenger-Gunner | -3/Research Scavenger-Tank | -3/Quarantine Scavenger-Tank | -3/Protoforge Resources | -11 -10 -10 -7 -5 -4 -4 -3 -3 -3 ----------- Run | Yrd Mat Sub Scr Fac Fac DSF Res Qua Frg Matter Collected 3438 | 210 232 49 60 850 . 467 387 482 701 Remotely . | . . . . . . . . . . Salvage Created 6664 | 69 456 56 . 2169 . 638 647 1310 1319 Parts 334 | 6 21 2 . 106 . 34 22 52 91 Haulers Intercepted 3 | . 2 . . 1 . . . . . Recyclers Shooed 4 | . 1 . . . . . 2 1 . Parts Field Recycled . | . . . . . . . . . . Retrieved Matter . | . . . . . . . . . . Parts Self-Destructed . | . . . . . . . . . . Prevented . | . . . . . . . . . . Kills | -11 -10 -10 -7 -5 -4 -4 -3 -3 -3 ------- Run | Yrd Mat Sub Scr Fac Fac DSF Res Qua Frg Combat Hostiles Destroyed 93 | . 8 1 . 31 . 12 7 15 19 Melee 23 | . . . . 23 . . . . . Guns 33 | . 7 1 . 3 . . 3 4 15 Cannons 22 | . . . . 2 . 8 3 8 1 AOE 7 | . 1 . . . . 3 . . 3 Classes Destroyed 14 | 1 4 1 . 5 . 1 1 1 . Worker 6 | . . . . 4 . . . 1 1 Builder 4 | . . . . 2 . . 1 . 1 Tunneler 4 | 3 1 . . . . . . . . Hauler 3 | . 2 . . 1 . . . . . Recycler 6 | . 1 . . 1 . . 1 3 . Watcher 3 | . . . . . . . 1 2 . Swarmer 14 | . 3 . . 3 . 4 . . 4 Grunt 28 | . 5 . . 14 . 7 1 1 . Sentry 7 | . . . . 3 . . 2 . 2 Hunter 13 | . . . . 3 . . 2 6 2 Programmer 22 | . . . . 8 . . 2 7 5 Heavy 1 | . . . . . . 1 . . . Hotshot 6 | . . . . . . . . . 6 Alpha 7 1 | . . . . . . . . 1 . Subdweller 1 | . . 1 . . . . . . . Best Kill Streak 7 | 1 4 1 . 7 . 4 3 4 7 Combat Bots Only 7 | . 3 1 . 7 . 4 3 4 4 Max Kills in Single Turn 3 | 1 2 1 . 1 . 3 1 1 3 Gunslinging . | . . . . . . . . . . Exploded 3 | . 1 . . . . 3 . . 3 Melee 1 | . . . . 1 . . . . . Uniques/NPCs Destroyed . | . . . . . . . . . . Combat | -11 -10 -10 -7 -5 -4 -4 -3 -3 -3 -------- Run | Yrd Mat Sub Scr Fac Fac DSF Res Qua Frg Hostile Shots Fired 1094 | . 40 10 . 345 . 90 119 274 216 Missed 296 | . 8 3 . 97 . 24 39 77 48 Deflected 6 | . . . . . . . . . 6 Hits 798 | . 32 7 . 248 . 66 80 197 168 Melee 45 | . . . . . . . . . 45 Projectile 753 | . 32 7 . 248 . 66 80 197 123 AOE 1 | . . . . 1 . . . . . Critical Strikes 64 | . . . . 19 . 2 4 7 32 Actively Blocked 32 | . . . . 1 . . 4 7 20 Part Disruptions 4 | . . . . 3 . . . 1 . Damage Taken 18458 | . 344 145 . 4962 . 1662 1687 3140 6518 Core 2265 | . 36 42 . 675 . 104 209 284 915 Absorbed by Shields 504 | . . . . . . . 8 455 41 Reduced by Siege Mode 184 | . . . . . . . . 184 . Redirected to Shielding 86 | . . . . 11 . . . . 75 Ignored by Resistances 71 | . . . . 71 . . . . . Regen/Repaired (Parts) 457 | . . . . . . . . . 457 Core Remaining (%) 72 | 100 . . 68 32 . 90 . . . Volleys Fired 312 | 8 34 7 . 25 . 33 31 88 86 Largest 3 | 2 2 2 . 2 . 2 3 3 3 Hottest 305 | 70 70 70 . 133 . 196 286 305 253 Shots Fired 633 | 16 65 14 . 45 . 62 69 165 197 Gun 355 | 16 63 14 . 21 . 8 19 54 160 Cannon 272 | . . . . 24 . 53 50 111 34 Launcher 6 | . 2 . . . . 1 . . 3 Special . | . . . . . . . . . . Kinetic 181 | 8 31 7 . 21 . 25 23 16 50 Thermal 445 | 8 32 6 . 24 . 36 46 149 144 Explosive 4 | . 2 . . . . 1 . . 1 Electromagnetic 3 | . . 1 . . . . . . 2 Robot Hit Streak 28 | 6 10 16 . 18 . 23 16 28 23 Robot Miss Streak 4 | 1 3 . . 4 . 2 4 2 3 Penetration Max 2 | . . . . 1 . 1 . 1 2 Secondary Targets 3 | . . . . . . . . . 3 Max Gunslinging Chain 1 | . . . . . . . . . 1 Shots Hit Robots 541 | 11 35 13 . 147 . 45 44 93 153 Core Hits 214 | 3 21 3 . 58 . 23 18 32 56 Critical Kills 17 | . . . . 6 . 4 4 3 . Critical Parts Destroyed 16 | . . . . 7 . 5 4 . . Critical Strikes 57 | . 2 . . 26 . 9 13 3 4 Burn 6 | . 2 . . . . . . . 4 Meltdown 5 | . . . . . . . 2 3 . Destroy 27 | . . . . 9 . 9 9 . . Blast 2 | . . . . . . . 2 . . Smash 4 | . . . . 4 . . . . . Sever 13 | . . . . 13 . . . . . Melee Attacks 204 | . . . . 204 . . . . . Impact 25 | . . . . 25 . . . . . Slashing 179 | . . . . 179 . . . . . Piercing . | . . . . . . . . . . Sneak Attacks 11 | . . . . 11 . . . . . Combat Hostiles 6 | . . . . 6 . . . . . Follow-up Attacks 29 | . . . . 29 . . . . . Damage Inflicted 17582 | 142 588 140 . 5339 . 1462 1377 3427 5107 Guns 6572 | 142 447 140 . 131 . 45 489 1251 3927 Cannons 5515 | . . . . 556 . 1178 886 2110 785 Explosions 841 | . 141 . . . . 239 . 66 395 Melee 4652 | . . . . 4652 . . . . . Ramming 2 | . . . . . . . 2 . . Kinetic 2835 | 67 184 56 . 131 . 309 453 644 991 Thermal 9242 | 75 263 74 . 556 . 914 922 2717 3721 Explosive 841 | . 141 . . . . 239 . 66 395 Electromagnetic 10 | . . 10 . . . . . . . Impact 672 | . . . . 672 . . . . . Slashing 3980 | . . . . 3980 . . . . . Piercing . | . . . . . . . . . . Highest Corruption 21 | . 2 2 . 21 . . 4 8 20 Average Corruption 6 | . 1 2 . 8 . . 3 6 10 Corruption Purged . | . . . . . . . . . . Corruption Blocked . | . . . . . . . . . . Effects 146 | . 7 2 . 28 . . 7 63 39 Message Errors 28 | . 1 1 . 10 . . . 10 6 Matter Fused 35 | . 1 1 . 2 . . . 22 9 Heat Flow Errors 16 | . . . . 5 . . 1 6 4 Energy Discharges 21 | . 4 . . 2 . . 1 5 9 Parts Rejected 5 | . . . . 3 . . . 1 1 Parts Fused 1 | . . . . . . . 1 . . Data Loss (minor) 17 | . . . . 3 . . 1 10 3 Data Loss (major) 5 | . 1 . . . . . . 3 1 Misfires 5 | . . . . . . . 3 2 . Alerts 3 | . . . . 1 . . . 2 . Weapon Failures 10 | . . . . 2 . . . 2 6 Overload Shots . | . . . . . . . . . . Overflow Damage 757 | . . . . 418 . . 7 164 168 Projectiles 199 | . . . . 8 . . 7 164 20 Explosions 148 | . . . . . . . . . 148 Melee 410 | . . . . 410 . . . . . Knockbacks 16 | . . . . . . 6 6 4 . Impact . | . . . . . . . . . . Kinetic 15 | . . . . . . 5 6 4 . Secondary 1 | . . . . . . 1 . . . Self-Inflicted Damage 78 | . . . . . . 21 . 57 . Shots 2 | . . . . . . 1 . 1 . Rammed . | . . . . . . . . . . Targets Rammed 1 | . . . . . . . 1 . . Kicked 1 | . . . . . . . 1 . . Crushed . | . . . . . . . . . . Highest Temperature 409 | 54 175 1 . 166 . 409 362 194 202 Average Temperature 74 | 23 50 1 . 56 . 145 149 43 32 Received Heat Transfer 1712 | . 165 42 . 594 . 314 118 65 414 Effects 3 | . . . . . . . 3 . . Shutdowns 2 | . . . . . . . 2 . . Interference 1 | . . . . . . . 1 . . Siege Activations 7 | . . . . . . . . 7 . Total Turns 117 | . . . . . . . . 117 . Longest Duration 30 | . . . . . . . . 30 . Martial Activations . | . . . . . . . . . . Shielding Activations 3 | . . . . . . . . . 3 Total Turns 74 | . . . . . . . . . 74 Longest Duration 30 | . . . . . . . . . 30 Robots Disrupted . | . . . . . . . . . . Combat Hostiles . | . . . . . . . . . . Robots Corrupted 3 | . . . . 3 . . . . . Combat Hostiles 3 | . . . . 3 . . . . . Parts Fried 2 | . . . . 2 . . . . . Impact Corruptions 6 | . . . . 6 . . . . . Robots Melted 5 | . . . . . . . 2 3 . Combat Hostiles 4 | . . . . . . . 1 3 . Parts Melted 15 | . . 1 . . . 3 5 6 . Heat Transferred 12467 | 222 925 222 . 750 . 1400 1242 3228 4478 Parts Sabotaged . | . . . . . . . . . . Parts Stolen . | . . . . . . . . . . Parts Stripped . | . . . . . . . . . . Power Chain Reactions . | . . . . . . . . . . Alert | -11 -10 -10 -7 -5 -4 -4 -3 -3 -3 ------- Run | Yrd Mat Sub Scr Fac Fac DSF Res Qua Frg Maximum Alert Level 1 | . . . . 1 . 1 . 1 1 Low Security (%) 81 | 100 100 . . 88 100 53 100 68 74 Level 1 18 | . . . . 11 . 46 . 31 25 Level 2 . | . . . . . . . . . . Level 3 . | . . . . . . . . . . Level 4 . | . . . . . . . . . . Level 5 . | . . . . . . . . . . High Security . | . . . . . . . . . . Max Security . | . . . . . . . . . . Sterilizations 1 | . . . . . . 1 . . . Peak Influence 324 | 5 75 . . 244 109 324 182 281 252 Initial 182 | . . . . . 99 55 182 7 150 Average 90 | . 22 . . 89 94 183 57 107 102 Influence Increases 3105 | 15 216 . . 994 20 329 249 694 588 Destroy 0b10 Robot/C 1840 | . 160 . . 620 . 240 140 300 380 Destroy 0b10 Robot/NC 130 | 15 20 . . 40 . . 15 30 10 Destroy Leader 382 | . 24 . . 142 . 30 42 54 90 Trap Triggered on 0b10 20 | . . . . . . . . 20 . Successful Hack 50 | . . . . 30 20 . . . . Disable Machine 285 | . . . . 15 . 15 30 195 30 Destroy Structure 218 | . 12 . . 42 . 14 22 50 78 Partial Spotted 30 | . . . . . . . . 30 . Lose Combat Pursuer 150 | . . . . 105 . 30 . 15 . Influence Decreases 3077 | 15 189 27 . 790 145 84 559 441 827 Entered New Map 409 | . . 14 . . 105 24 142 7 117 Time Decay 1731 | 15 182 10 . 430 40 . 358 394 302 Lost Part 791 | . 7 3 . 360 . 60 59 40 262 Lost Ally 40 | . . . . . . . . . 40 Purge Threat 106 | . . . . . . . . . 106 Squads Dispatched 20 | . . . . 8 . 1 1 6 4 Investigation 4 | . . . . 3 . . . 1 . Extermination 10 | . . . . 3 . . 1 4 2 Reinforcement 6 | . . . . 2 . 1 . 1 2 Assault . | . . . . . . . . . . Garrison . | . . . . . . . . . . Intercept . | . . . . . . . . . . Searches Triggered . | . . . . . . . . . . Construction Impeded 1 | . . . . 1 . . . . . Haulers Reinforced . | . . . . . . . . . . Active Scanning Responses . | . . . . . . . . . . Cargo Convoy Interrupts . | . . . . . . . . . . Stealth | -11 -10 -10 -7 -5 -4 -4 -3 -3 -3 --------- Run | Yrd Mat Sub Scr Fac Fac DSF Res Qua Frg Distress Signals 8 | . 1 . . 1 . . 1 4 1 Communications Jammed 28 | . . . . 6 . . . 7 15 Distress Signals 20 | . . . . 6 . . . 7 7 Times Spotted 122 | . 10 1 . 40 . 12 9 23 27 Peak Tracking Total 7 | . 3 1 . 5 . 4 3 5 7 Tactical Retreats 9 | . . . . 6 . 2 . 1 . Traps | -11 -10 -10 -7 -5 -4 -4 -3 -3 -3 ------- Run | Yrd Mat Sub Scr Fac Fac DSF Res Qua Frg Traps Triggered 7 | . 2 . . 1 . 1 . 1 2 Indirectly . | . . . . . . . . . . Trap Hack Attempts . | . . . . . . . . . . Triggered . | . . . . . . . . . . Disarmed . | . . . . . . . . . . Reprogrammed . | . . . . . . . . . . Reused 2 | . . . . . . . . 2 . Traps Extracted . | . . . . . . . . . . Installed 2 | . . . . . . . . 2 . Triggered 2 | . . . . . . . . 2 . Most Traps Carried 2 | . . . 2 2 2 2 2 2 . Machines | -11 -10 -10 -7 -5 -4 -4 -3 -3 -3 ---------- Run | Yrd Mat Sub Scr Fac Fac DSF Res Qua Frg Machines Disabled 22 | . 1 . . 1 . 1 2 15 2 Max in Single Turn 2 | . 1 . . 1 . 1 1 2 1 Machines Repaired . | . . . . . . . . . . Machines Dismantled . | . . . . . . . . . . Machines Sabotaged . | . . . . . . . . . . Overloaded Fab Kills . | . . . . . . . . . . Hacking | -11 -10 -10 -7 -5 -4 -4 -3 -3 -3 --------- Run | Yrd Mat Sub Scr Fac Fac DSF Res Qua Frg Machines Accessed 30 | . 1 . 2 10 2 . 3 8 4 Terminals 18 | . . . . 4 1 . 2 8 3 Fabricators 4 | . . . . 2 1 . 1 . . Repair Stations 2 | . . . . 1 . . . . 1 Recycling Units 3 | . 1 . . 2 . . . . . Scanalyzers 1 | . . . . 1 . . . . . Garrison Access . | . . . . . . . . . . Total Hacks 55 | . 2 . 4 18 6 . 3 12 10 Successful 21 | . . . 4 7 4 . 1 2 3 Failed 34 | . 2 . . 11 2 . 2 10 7 Catastrophic 15 | . . . . 6 . . 2 5 2 Database Lockouts . | . . . . . . . . . . Manual 15 | . . . . 8 3 . . 2 2 Terminals 29 | . . . . 8 2 . 2 12 5 Fabricators 9 | . . . . 4 4 . 1 . . Repair Stations 7 | . . . . 2 . . . . 5 Recycling Units 4 | . 2 . . 2 . . . . . Scanalyzers 2 | . . . . 2 . . . . . Garrison Access . | . . . . . . . . . . Terminal Hacks 10 | . . . 4 1 1 . 1 2 1 Record 4 | . . . 3 . . . . 1 . Open Door 2 | . . . . . . . 1 1 . Open DSF 1 | . . . . . 1 . . . . Level Access Points 1 | . . . . 1 . . . . . Unreport Threat 1 | . . . . . . . . . 1 Proto ID Catalog 1 | . . . 1 . . . . . . Fabricator Hacks 3 | . . . . 2 1 . . . . Network Status 2 | . . . . 2 . . . . . Build 1 | . . . . . 1 . . . . Repair Station Hacks 2 | . . . . . . . . . 2 Scan Component 1 | . . . . . . . . . 1 Repair 1 | . . . . . . . . . 1 Recycling Unit Hacks . | . . . . . . . . . . Scanalyzer 1 | . . . . 1 . . . . . Insert Component 1 | . . . . 1 . . . . . Garrison Access Hacks . | . . . . . . . . . . Unauthorized Hacks 5 | . . . . 3 2 . . . . Terminals 1 | . . . . 1 . . . . . Botnet 1 | . . . . 1 . . . . . Fabricators 2 | . . . . . 2 . . . . Prioritize 1 | . . . . . 1 . . . . Fabnet 1 | . . . . . 1 . . . . Repair Stations . | . . . . . . . . . . Recycling Units 2 | . . . . 2 . . . . . Fedlink 2 | . . . . 2 . . . . . Scanalyzers . | . . . . . . . . . . Garrison Access . | . . . . . . . . . . Data Cores Recovered . | . . . . . . . . . . Used . | . . . . . . . . . . Hacking Detections 23 | . 1 . . 8 1 . 2 7 4 Full Trace Events 1 | . . . . . . . . 1 . Feedback Events . | . . . . . . . . . . Feedback Blocked . | . . . . . . . . . . Robot Schematics Acquired . | . . . . . . . . . . Robots Built . | . . . . . . . . . . Authchips . | . . . . . . . . . . Time . | . . . . . . . . . . Total Robot Build Rating . | . . . . . . . . . . Part Schematics Acquired . | . . . . . . . . . . Parts Built 2 | . . . . . 2 . . . . Authchips . | . . . . . . . . . . Time 128 | . . . . . 128 . . . . Total Part Build Rating 16 | . . . . . 16 . . . . Parts Repaired 1 | . . . . . . . . . 1 Time 108 | . . . . . . . . . 108 Parts Recycled . | . . . . . . . . . . Recycled Matter . | . . . . . . . . . . Retrieved Matter . | . . . . . . . . . . Retrieved Components . | . . . . . . . . . . Parts Scanalyzed 1 | . . . . 1 . . . . . Part Schematics Acquired . | . . . . . . . . . . Parts Damaged . | . . . . . . . . . . Bothacking | -11 -10 -10 -7 -5 -4 -4 -3 -3 -3 ------------ Run | Yrd Mat Sub Scr Fac Fac DSF Res Qua Frg Used RIF Installer . | . . . . . . . . . . Robots Hacked 2 | . . . . . . . . . 2 Non-combat . | . . . . . . . . . . Combat 2 | . . . . . . . . . 2 Robot Hacks Applied . | . . . . . . . . . . Relay Couplers Released 3 | . . . . 3 . . . . . Programmers 3 | . . . . 3 . . . . . Fabnet Peak Effective % 3 | . . . . . . . 3 3 3 Autooverrided 2 | . . . . . . . . . 2 Robots Rewired . | . . . . . . . . . . Allies Hacked . | . . . . . . . . . . Hacks Repelled . | . . . . . . . . . . Allies | -11 -10 -10 -7 -5 -4 -4 -3 -3 -3 -------- Run | Yrd Mat Sub Scr Fac Fac DSF Res Qua Frg Total Allies 2 | . . . . . . . . . 2 Largest Group 1 | . . . . . . . . . 1 Highest-Rated Group 82 | . . . . . . . . . 82 Highest-Rated Ally 82 | . . . . . . . . . 82 Total Orders . | . . . . . . . . . . Ally Attacks 4 | . . . . . . . . . 4 Total Damage 23 | . . . . . . . . . 23 Kills . | . . . . . . . . . . Allies Corrupted . | . . . . . . . . . . Allies Melted . | . . . . . . . . . . Intel | -11 -10 -10 -7 -5 -4 -4 -3 -3 -3 ------- Run | Yrd Mat Sub Scr Fac Fac DSF Res Qua Frg Active Infowar (turns) 5253 | . . 51 1 1097 . 266 910 2035 893 Sensors 4489 | . . . . 1081 . . 503 2035 870 IFF 3 | . . . 1 . . . . 2 . Seismic 51 | . . 51 . . . . . . . Jamming 4914 | . . . . 810 . 266 910 2035 893 Robot Analysis Total . | . . . . . . . . . . Derelict Logs Recovered . | . . . . . . . . . . Drone Launches . | . . . . . . . . . . Drone Recoveries . | . . . . . . . . . . Exploration | -11 -10 -10 -7 -5 -4 -4 -3 -3 -3 ------------- Run | Yrd Mat Sub Scr Fac Fac DSF Res Qua Frg Turns Passed 9003 | 135 568 164 2067 1706 94 406 910 2035 918 Spaces Moved 4506 | 60 274 74 1269 865 57 137 382 1003 385 Core 2 | 2 . . . . . . . . . Treads 2469 | 58 274 74 1269 . . 35 57 702 . Legs 1688 | . . . . 677 . . 325 301 385 Wheels 347 | . . . . 188 57 102 . . . Hover . | . . . . . . . . . . Flight . | . . . . . . . . . . Fastest Speed 50 | 50 160 160 160 87 110 110 182 116 116 Average Speed 149 | 156 160 160 160 116 110 176 195 153 117 Slowest Speed 330 | 160 160 160 160 330 110 290 270 185 190 Overloaded Moves . | . . . . . . . . . . Propulsion Burnouts . | . . . . . . . . . . Robots Hopped . | . . . . . . . . . . Potential Cave-ins . | . . . . . . . . . . Cave-ins Triggered 1 | . . . . . . . . . 1 Exploration Rate (%) 34 | 4 40 10 75 21 1 77 10 92 12 Regions Visited 9 Branch Regions 4 Pre-discovered Areas 1 | . . . . 1 . . . . . Known Exits Taken 4 | . . . . 1 1 . 1 1 . Unknown Exits Taken 4 | 1 1 1 1 . . . . . . Scrap Searched 6 | . . . 6 . . . . . . Spaces Dug 77 | . 5 . . 15 . . 5 16 36 Terrain Destroyed 138 | . 12 . . 21 . 7 10 40 48 Melee 13 | . . . . 13 . . . . . Projectile 78 | . . . . 8 . 1 10 40 19 AOE 46 | . 12 . . . . 5 . . 29 Terrain Rammed . | . . . . . . . . . . Walls Destroyed . | . . . . . . . . . . Machines Disabled . | . . . . . . . . . . Actions | -11 -10 -10 -7 -5 -4 -4 -3 -3 -3 --------- Run | Yrd Mat Sub Scr Fac Fac DSF Res Qua Frg Total 6058 | 82 341 109 1313 1369 88 239 484 1360 673 Wait 639 | 3 17 16 . 197 31 21 29 172 153 Move 4497 | 59 273 73 1268 864 56 136 381 1002 385 Hop . | . . . . . . . . . . Pick Up 107 | 6 7 3 22 25 . 12 10 17 5 Fast Attach 91 | 6 1 1 3 28 . 8 12 18 14 Attach 58 | . 1 1 4 27 1 4 4 9 7 Detach 20 | . . . 2 5 . 2 4 4 3 Swap 59 | . 4 2 . 15 . 12 7 12 7 Drop 107 | . 4 6 14 18 . 11 5 36 13 Fire 312 | 8 34 7 . 25 . 33 31 88 86 Melee 165 | . . . . 165 . . . . . Ram . | . . . . . . . . . . Kick 1 | . . . . . . . 1 . . Crush . | . . . . . . . . . . Escape Stasis . | . . . . . . . . . . Rewire . | . . . . . . . . . . Trap 2 | . . . . . . . . 2 . Miscellaneous . | . . . . . . . . . . Route ------- -11/Scrapyard -10/Materials (discovered 4 exits: [*Mat] / [*Min x2] / [*Sub]) -10/Subcaves -7/Scraptown -5/Factory (discovered 4 exits: *Fac x4) -4/Factory -4/DSF -3/Research -3/Quarantine (discovered 3 exits: [*Res] / *Sec / *Frg) -3/Protoforge History --------- Turn | Location | Event 43 | -11/Scrapyard | Discovered new exit (range 16) 136 | -11/Scrapyard | Entered Materials 210 | -10/Materials | Discovered new exit (range 9) 308 | -10/Materials | Build established: Mutant 401 | -10/Materials | Discovered new exit (range 3) 464 | -10/Materials | Discovered new exit (range 16) 691 | -10/Materials | Discovered new exit (range 8) 704 | -10/Materials | Entered Subcaves 705 | -10/Subcaves | Approached by a straggling Scientist 845 | -10/Subcaves | Scientist uncovered a shortcut to Scraptown 868 | -10/Subcaves | Entered Scraptown 868 | -7/Scraptown | System corruption cleaned by C-Scrubber 1059 | -7/Scraptown | Visited Junk Repository 1108 | -7/Scraptown | Visited Assassins FH 1153 | -7/Scraptown | Visited Bundlers 1266 | -7/Scraptown | Visited The Evicted 1325 | -7/Scraptown | Visited Scrapoid Research Area 1365 | -7/Scraptown | Visited UFD Registry 1365 | -7/Scraptown | Registered with UFD as "Kinetirider" 1419 | -7/Scraptown | Visited Botcube Research 1448 | -7/Scraptown | Visited Derelict Rescue Squad 1474 | -7/Scraptown | Visited Abandonware Association 1490 | -7/Scraptown | Learned abandonware demo "TRNCOAT.EXE" 1527 | -7/Scraptown | Visited Cartography Club 1584 | -7/Scraptown | Visited Supply Room 1644 | -7/Scraptown | Visited Observation Area 1663 | -7/Scraptown | Visited Junk Repository 1702 | -7/Scraptown | Visited Science Guys 1753 | -7/Scraptown | Visited Research Penetration Think Tank 1856 | -7/Scraptown | Delivered Scrap Shield to a Scientist 2844 | -7/Scraptown | Met Optimus 2844 | -7/Scraptown | Accepted into 0bPrime 2925 | -7/Scraptown | Discovered new exit (range 5) 2935 | -7/Scraptown | Entered Factory 2935 | -5/Factory | Evolved 10 slots: Power x1, Propulsion x3, Utility x6 3200 | -5/Factory | Lost 5 parts (2n2u1w) 3437 | -5/Factory | Build established: Scavenger-Gladiator 3576 | -5/Factory | Identified exit to Factory 3877 | -5/Factory | Destroyed 7 combat bots 4142 | -5/Factory | Lost 3 parts (1p1n1w) 4165 | -5/Factory | Loaded intel: 8 recycling unit locations 4311 | -5/Factory | Lost 10 parts (2p4n3u1w) 4353 | -5/Factory | Learned location of Protoforge (-3) 4446 | -5/Factory | System corruption reached 10% 4456 | -5/Factory | Core integrity fell below 50% 4511 | -5/Factory | Lost 15 parts (4p7n3u1w) 4641 | -5/Factory | Entered another Factory area 4641 | -4/Factory | Evolved 2 slots: Propulsion x1, Utility x1 4655 | -4/Factory | Identified exit to DSF 4731 | -4/Factory | Fabricated Mic. Antimatter Reactor? 4735 | -4/Factory | Entered DSF 4801 | -4/DSF | Additional patrols routed to DSF 4981 | -4/DSF | Build established: Scavenger-Mutant 5024 | -4/DSF | Sterilization system engaged 5044 | -4/DSF | Ambient heat levels rising (+10) 5059 | -4/DSF | Ambient heat levels rising (+10) 5074 | -4/DSF | Ambient heat levels rising (+10) 5089 | -4/DSF | Ambient heat levels rising (+10) 5099 | -4/DSF | Discovered new exit (range 16) 5104 | -4/DSF | Ambient heat levels rising (+10) 5119 | -4/DSF | Ambient heat levels rising (+10) 5134 | -4/DSF | Ambient heat levels rising (+10) 5139 | -4/DSF | Identified exit to Research 5141 | -4/DSF | Entered Research 5141 | -3/Research | Evolved 2 slots: Utility x1, Weapon x1 5674 | -3/Research | Build established: Scavenger-Gunner 5838 | -3/Research | Lost 7 parts (3n2u2w) 6006 | -3/Research | Discovered new exit (range 9) 6049 | -3/Research | Identified exit to Quarantine 6051 | -3/Research | Entered Quarantine 6111 | -3/Quarantine | Found Alien Artifact 6111 | -3/Quarantine | Identified Phase Redirector 6359 | -3/Quarantine | Found Alien Slashing Weapon 6415 | -3/Quarantine | Met incapacitated Sigix Warrior 6415 | -3/Quarantine | Lockdown squad dispatched 6421 | -3/Quarantine | Acquired the access code to the Sigix quarantine chamber 6425 | -3/Quarantine | Unlocked Sigix quarantine chamber 6433 | -3/Quarantine | Found Sigix Containment Pod 6447 | -3/Quarantine | Build established: Scavenger-Tank 6776 | -3/Quarantine | Found Fusion Bomb Launcher 7033 | -3/Quarantine | Spotted Alpha 7 7045 | -3/Quarantine | Destroyed Alpha 7 7072 | -3/Quarantine | Door terminal overloaded 7121 | -3/Quarantine | Found Alien Launcher 7161 | -3/Quarantine | Discovered new exit (range 16) 7200 | -3/Quarantine | Found Alien Artifact 7916 | -3/Quarantine | Found Alien Artifact 7997 | -3/Quarantine | Spotted Fortress 8077 | -3/Quarantine | Discovered new exit (range 6) 8077 | -3/Quarantine | Discovered new exit (range 7) 8082 | -3/Quarantine | Identified exit to Section 7 8085 | -3/Quarantine | Identified exit to Protoforge 8086 | -3/Quarantine | Entered Protoforge 8452 | -3/Protoforge | Repaired Centrium Medium Armor Plating 8507 | -3/Protoforge | System corruption reached 10% 8542 | -3/Protoforge | Spotted Hotshot 8544 | -3/Protoforge | Superfortress began startup sequence 8547 | -3/Protoforge | Spotted Hotshot 8549 | -3/Protoforge | Spotted Hotshot 8584 | -3/Protoforge | Destroyed Hotshot 8591 | -3/Protoforge | Destroyed Hotshot 8613 | -3/Protoforge | Destroyed Hotshot 8858 | -3/Protoforge | Spotted Hotshot 8858 | -3/Protoforge | Spotted Hotshot 8858 | -3/Protoforge | Spotted Hotshot 8890 | -3/Protoforge | Destroyed Hotshot 8915 | -3/Protoforge | Destroyed Hotshot 8918 | -3/Protoforge | Destroyed Hotshot 8921 | -3/Protoforge | Spotted Overlord 8925 | -3/Protoforge | Spotted Immortal 8925 | -3/Protoforge | Spotted Immortal 8925 | -3/Protoforge | Spotted Immortal 8930 | -3/Protoforge | Crushed by falling debris 8948 | -3/Protoforge | Core integrity fell below 50% 8999 | -3/Protoforge | Core integrity fell below 20% 9004 | -3/Protoforge | Destroyed by Immortal with Experimental Jetlance Last Messages --------------- 08993_ K-01 Serf collects debris. 08993_ Critical hit (Impale). 08996_ Exp. Heat Sink destroyed. 08996_ K-01 Serf collects debris. 08997_ Critical hit (Impale). 08997_ Hvy. Proton Missile Launcher destroyed. 08997_ Myomer Leg destroyed. 08997_ Critical hit (Impale). 08997_ Hds. Centrium Leg destroyed. 08998_ System corrupted: Energy discharge (-98). 08998_ Knocked back. 08998_ Critical hit (Impale). 08998_ Enh. Flexi-carbon Leg destroyed. 08999_ K-01 Serf collects debris. 09000_ Exp. Heat Sink destroyed. 09001_ Critical hit (Impale). 09001_ Hds. Centrium Leg destroyed. 09002_ Critical hit (Impale). 09004_ K-01 Serf collects debris. 09004_ Critical hit (Impale). Map ----- +----------------------------------------------------+ | ????????????????????????????????????????????? | | ????????????????????????????????????????????? | | ????????????????????????????????????????????? | | ????????????????????????????????????????????? | | ????????????????????????????????????????????? | | ????????????????????????????????????????????? | | ????????????????????????????????????????????? | | ??????????????????????????????####??????????? | | ?????????????????????????????? #??????????? | | ?????????????????????????????? #??????????? | | ????????????????????????????? #??????????? | | ???????????????????????????? #??????????? | | ????????????????????????????# #??????????? | | ????????????????????????????# #??????????? | | ?????????????#####+########## #####??????? | | ??????????? ?? ??????? | | ??????????? ?? ??????? | | ?????????? ?? ? ?????? | | ??????????? ?? % % [!" ?????? | | ??????????# ? ?##;;##!;### !%% ?????? | | ??????????# # !!%!= %!# """ ""????? | | ??????????# + "=| %[# ^ """" " ""???? | | ????????????####### "H"!" [# "" " """" ??? | | ??????????????????# "m"%""=%# """" """" """ | | ??????????????????#|ll% !%! / | | ??????????????????# @l !!! # | | ??????????????????# k m *%![#% %###########? | | ??????????????????# ![!#* # | | ??????????????????######### # # # | | ??????????????????????????# "" "" =!/ | | ??????????????????????????# % ""T" !!%# | | ??????????????????????????# [% # "" *!#?? | | ??????????????????????????# # ########?? | | ??????????????????????????# % # ##????????? | | ??????????????????????????## ## ??????? | | ???########???????????????# # # """ ??? | | ???# #???????????????## ##? """ #?? | | ???# " " #????????????????## #???""" ????? | | ???# #?????????????????# ^#????"" ????? | | ???# "=!" ##???#######?????## ##???""?????? | | ???# !]![!##???# ####### #??????????? | | ?# #[%!!!!#??### #??????????? | | ???####=######## #??????????? | | ??????#%!=!* #??????????? | | ??????#!= =! ####### #??????????? | | ?######"##| #?????#######??????????? | | # # """"""" #??????????????????????? | | # """ # """"""" #??????????????????????? | | # """ # """"""" #??????????????????????? | | # """ # #??????????????????????? | +----------------------------------------------------+ Best States ------------- Heat Dissipation 150 Energy Generation 43 Energy Capacity 590 Matter Stores 300 Matter Capacity 300 Sight Range 16 Robot Scan Range 16 Terrain Scan Density 10 Jamming Range 14 Base Temperature (-) 200 EM Shielding 4 Armor Coverage 800 Resistance: TH 20 Core Shielding 30 Propulsion Shielding 90 Melee Speed Boost 20 Phase Shifting 5 Evasion (%) 67 Targeting Accuracy 12 Recoil Reduction 6 Defensive Hacking 10 Item Schematics ----------------- None Robot Schematics ------------------ None Fabricated ------------ Mic. Antimatter Reactor | x2 | -4/Factory | Preloaded Repaired ---------- Centrium Medium Armor Plating | 23% | -3/Protoforge Alien Tech Used ----------------- Phase Redirector Achievements -------------- None Challenges ------------ None Game ------ Seed ScrapoidBottomlessBeacon Manual? 0 Play Time 01:21:30 Cumulative 503.6 hours Start 2025.06.23 @ 15:04:10 End 2025.06.24 @ 11:52:07 Sessions 7 Manual Loads 0 Difficulty Rogue Special Mode None Game No. 349 Rogue 349 Adventurer 0 Explorer 0 Win Type - Total 46 Types 39/0/5/2/0/0/0/0/0/0 Lore% 83 Gallery% 79 Achievement% 72 Wizard Run 0 Options --------- Layout 0 ASCII 0 Keyboard 1 Movement Numpad Keybinds 0 Fullscreen 1 Font 24/Smallcaps Map View 76x50 Zoom Use 0% Tactical HUD 1 Map Filters NONE Filters NONE Steam 1 RUN: f08341e5-41d3-4145-9b17-c65f3b4f8f61